fUSD/lending_fUSD_20250607
["ID","MTS","AMOUNT","RATE_DAILY","PERIOD"]
[364897815,1749286258795,-1361.65,0.000321,31]
[364897816,1749286258805,-1361.65,0.000321,31]
[364897817,1749286258817,-1361.65,0.000321,31]
[364897818,1749286258827,-1361.65,0.000321,31]
[364897819,1749286258838,-1361.65,0.000321,31]
[364897820,1749286258848,-1361.65,0.000321,31]
[364897821,1749286258858,-1361.65,0.000321,31]
[364897822,1749286258868,-1361.65,0.000321,31]
[364897823,1749286258878,-1361.65,0.000321,31]
[364897824,1749286258888,-1361.65,0.000321,31]
[364897825,1749286258898,-1361.65,0.000321,31]
[364897826,1749286258909,-1361.65,0.000321,31]
[364897827,1749286258919,-1361.65,0.000321,31]
[364897828,1749286258929,-1361.65,0.000321,31]
[364897829,1749286258939,-1361.65,0.000321,31]
[364897830,1749286258949,-1361.65,0.000321,31]
[364897831,1749286258958,-1361.65,0.000321,31]
[364897832,1749286258968,-1361.65,0.000321,31]
[364897833,1749286258978,-1361.65,0.000321,31]
[364897834,1749286258988,-1361.65,0.000321,31]
[364897835,1749286258997,-1361.65,0.000321,31]
[364897836,1749286259007,-1361.65,0.000321,31]
[364897837,1749286259018,-1361.65,0.000321,31]
[364897838,1749286259029,-1361.65,0.000321,31]
[364897839,1749286259039,-151.0,0.000321,7]
[364897840,1749286259049,-273.709969,0.000321,7]
[364897841,1749286259058,-151.0,0.000321,7]
[364897842,1749286259069,-151.0,0.000321,7]
[364897843,1749286259081,-205.49714,0.000321,7]
[364897844,1749286259091,-205.49714,0.000321,7]
[364897845,1749286259101,-182.05162,0.000321,7]
[364897846,1749286259112,-151.0,0.000321,7]
[364897847,1749286259122,-182.05162,0.000321,7]
[364897848,1749286259132,-151.0,0.000321,7]
[364897849,1749286259142,-151.0,0.000321,7]
[364897850,1749286259151,-151.0,0.000321,7]
[364897851,1749286259161,-150.0,0.00032109,7]
[364897852,1749286259172,-150.0,0.00032116,7]
[364897853,1749286259183,-150.0,0.00032123,7]
[364897854,1749286259193,-218.84593086,0.00032127,7]
[364897855,1749286259203,-279.10775981,0.00032127,7]
[364897856,1749286259213,-150.0,0.00032128,2]
[364897857,1749286259222,-150.0,0.00032157,7]
[364897858,1749286259232,-218.84593086,0.0003216,7]
[364897859,1749286259242,-279.10775981,0.0003216,7]
[364897860,1749286259252,-150.0,0.00032168,7]
[364897861,1749286259263,-280.032274,0.0003217,12]
[364897862,1749286259275,-1073.34290267,0.00032172,2]
[364897863,1749286259286,-150.0,0.00032178,7]
[364897864,1749286259296,-150.0,0.00032178,7]
[364897865,1749286259306,-150.0,0.00032184,7]
[364897866,1749286259318,-218.84593086,0.00032194,7]
[364897867,1749286259328,-279.10775981,0.00032194,7]
[364897868,1749286259339,-1000.0,0.00032195,7]
[364897869,1749286259349,-1008.44077942,0.000322,4]
[364897870,1749286259359,-150.0,0.00032204,7]
[364897871,1749286259368,-150.0,0.00032213,7]
[364897872,1749286259379,-218.84593086,0.00032227,7]
[364897873,1749286259389,-279.10775981,0.00032227,7]
[364897874,1749286259400,-150.0,0.00032232,7]
[364897875,1749286259409,-150.0,0.00032251,7]
[364897876,1749286259420,-150.0,0.00032251,7]
[364897877,1749286259430,-150.0,0.00032251,7]
[364897878,1749286259440,-150.0,0.00032258,7]
[364897879,1749286259450,-218.84593086,0.00032261,7]
[364897880,1749286259460,-279.10775981,0.00032261,7]
[364897881,1749286259470,-150.0,0.00032264,7]
[364897882,1749286259480,-218.84593086,0.00032295,7]
[364897883,1749286259491,-279.10775981,0.00032295,7]
[364897884,1749286259503,-150.0,0.00032299,7]
[364897885,1749286259512,-2000.0,0.00032299,2]
[364897886,1749286259523,-181705.03,0.000323,7]
[364897887,1749286259534,-150.0,0.00032303,7]
[364897888,1749286259544,-150.0,0.00032313,2]
[364897889,1749286259555,-4655.34628196,0.00032314,26]
[364897890,1749286259566,-150.0,0.00032319,7]
[364897891,1749286259575,-276.27,0.00032328,2]
[364897892,1749286259586,-500.0,0.00032328,6]
[364897893,1749286259597,-218.84593086,0.00032328,7]
[364897894,1749286259609,-279.10775981,0.00032328,7]
[364897895,1749286259620,-1000.0,0.00032332,7]
[364897896,1749286259630,-150.0,0.00032346,7]
[364897897,1749286259641,-150.0,0.00032348,7]
[364897898,1749286259651,-150.0,0.00032349,7]
[364897899,1749286259662,-218.84593086,0.00032362,7]
[364897900,1749286259671,-279.10775981,0.00032362,7]
[364897901,1749286259681,-150.0,0.0003237,7]
[364897902,1749286259692,-150.0,0.0003237,7]
[364897903,1749286259702,-150.0,0.0003237,7]
[364897904,1749286259713,-150.0,0.00032387,7]
[364897905,1749286259724,-150.0,0.00032392,7]
[364897906,1749286259735,-150.0,0.00032394,7]
[364897907,1749286259746,-218.84593086,0.00032395,7]
[364897908,1749286259756,-279.10775981,0.00032395,7]
[364897909,1749286259766,-163.17369256,0.000324,60]
[364897910,1749286259777,-163.17369256,0.000324,60]
[364897911,1749286259787,-163.17369256,0.000324,60]
[364897912,1749286259796,-163.17369256,0.000324,60]
[364897913,1749286259806,-163.17369256,0.000324,60]
[364897914,1749286259817,-162.96,0.00032408,2]
[364897915,1749286259827,-218.84593086,0.00032429,7]
[364897916,1749286259838,-279.10775981,0.00032429,7]
[364897917,1749286259849,-150.0,0.00032434,7]
[364897918,1749286259860,-150.0,0.00032434,7]
[364897919,1749286259870,-1000.0,0.00032434,2]
[364897920,1749286259879,-150.0,0.00032437,7]
[364897921,1749286259889,-150.0,0.00032441,7]
[364897922,1749286259899,-150.0,0.00032444,2]
[364897923,1749286259909,-150.0,0.00032455,7]
[364897924,1749286259919,-218.84593086,0.00032462,7]
[364897925,1749286259929,-279.10775981,0.00032462,7]
[364897926,1749286259940,-1000.0,0.00032468,7]
[364897927,1749286259951,-150.0,0.00032482,7]
[364897928,1749286259962,-150.0,0.00032489,7]
[364897929,1749286259972,-218.84593086,0.00032496,7]
[364897930,1749286259982,-279.10775981,0.00032496,7]
[364897931,1749286259992,-280.219,0.00032502,2]
[364897932,1749286260002,-150.0,0.00032508,7]
[364897933,1749286260012,-150.0,0.00032519,7]
[364897934,1749286260023,-150.0,0.00032522,7]
[364897935,1749286260033,-150.0,0.00032527,7]
[364897936,1749286260043,-218.84593086,0.00032529,7]
[364897937,1749286260053,-279.10775981,0.00032529,7]
[364897938,1749286260063,-150.0,0.00032536,7]
[364897939,1749286260074,-209.0,0.0003256,2]
[364897940,1749286260084,-211.0,0.0003256,2]
[364897941,1749286260093,-212.0,0.0003256,30]
[364897942,1749286260103,-207.0,0.0003256,2]
[364897943,1749286260113,-211.0,0.0003256,2]
[364897944,1749286260123,-212.0,0.0003256,30]
[364897945,1749286260133,-206.0,0.0003256,2]
[364897946,1749286260144,-277.79930206,0.00032561,2]
[364897947,1749286260155,-218.84593086,0.00032563,7]
[364897948,1749286260165,-279.10775981,0.00032563,7]
[364897949,1749286260174,-150.0,0.00032572,7]
[364897950,1749286260184,-1000.0,0.00032577,2]
[364897951,1749286260194,-150.0,0.00032581,2]
[364897952,1749286260204,-150.0,0.00032583,7]
[364897953,1749286260214,-150.0,0.0003259,7]
[364897954,1749286260224,-218.84593086,0.00032596,7]
[364897955,1749286260234,-279.10775981,0.00032596,7]
[364897956,1749286260244,-1361.65,0.000326,31]
[364897957,1749286260254,-1361.65,0.000326,31]
[364897958,1749286260266,-1361.65,0.000326,31]
[364897959,1749286260276,-1361.65,0.000326,31]
[364897960,1749286260286,-1361.65,0.000326,31]
[364897961,1749286260295,-1361.65,0.000326,31]
[364897962,1749286260306,-1361.65,0.000326,31]
[364897963,1749286260318,-1361.65,0.000326,31]
[364897964,1749286260328,-1361.65,0.000326,31]
[364897965,1749286260338,-1361.65,0.000326,31]
[364897966,1749286260349,-1361.65,0.000326,31]
[364897967,1749286260360,-1361.65,0.000326,31]
[364897968,1749286260369,-1361.65,0.000326,31]
[364897969,1749286260379,-1361.65,0.000326,31]
[364897970,1749286260389,-1361.65,0.000326,31]
[364897971,1749286260399,-1361.65,0.000326,31]
[364897972,1749286260409,-1361.65,0.000326,31]
[364897973,1749286260419,-1361.65,0.000326,31]
[364897974,1749286260430,-1361.65,0.000326,31]
[364897975,1749286260439,-1361.65,0.000326,31]
[364897976,1749286260448,-1361.65,0.000326,31]
[364897977,1749286260458,-1361.65,0.000326,31]
[364897978,1749286260467,-1361.65,0.000326,31]
[364897979,1749286260478,-1361.65,0.000326,31]
[364897980,1749286260487,-150.0,0.00032604,7]
[364897981,1749286260496,-150.0,0.00032605,2]
[364897982,1749286260507,-1000.0,0.00032605,7]
[364897983,1749286260517,-150.0,0.00032617,7]
[364897984,1749286260528,-218.84593086,0.0003263,7]
[364897985,1749286260537,-279.10775981,0.0003263,7]
[364897986,1749286260546,-150.0,0.00032631,7]
[364897987,1749286260555,-150.0,0.00032643,2]
[364897988,1749286260565,-150.0,0.00032647,7]
[364897989,1749286260575,-150.0,0.00032648,2]
[364897990,1749286260658,-500.0,0.00032652,7]
[364897991,1749286260669,-150.0,0.00032658,7]
[364897992,1749286260679,-150.0,0.00032662,7]
[364897993,1749286260688,-218.84593086,0.00032663,7]
[364897994,1749286260698,-279.10775981,0.00032663,7]
[364897995,1749286260707,-150.0,0.00032678,7]
[364897996,1749286260716,-150.0,0.00032689,7]
[364897997,1749286260726,-150.0,0.00032689,7]
[364897998,1749286260736,-218.84593086,0.00032697,7]
[364897999,1749286260745,-279.10775981,0.00032697,7]
[364898000,1749286260755,-150.0,0.00032706,7]
[364898001,1749286260764,-150.0,0.00032726,7]
[364898002,1749286260774,-150.0,0.00032726,7]
[364898003,1749286260784,-150.0,0.00032726,7]
[364898004,1749286260794,-218.84593086,0.00032731,7]
[364898005,1749286260803,-279.10775981,0.00032731,7]
[364898006,1749286260813,-150.0,0.00032741,2]
[364898007,1749286260825,-1000.0,0.00032742,7]
[364898008,1749286260834,-150.0,0.00032751,7]
[364898009,1749286260844,-218.84593086,0.00032764,7]
[364898010,1749286260854,-279.10775981,0.00032764,7]
[364898011,1749286260864,-150.0,0.00032773,7]
[364898012,1749286260873,-150.0,0.00032774,7]
[364898013,1749286260883,-150.0,0.00032785,7]
[364898014,1749286260893,-150.0,0.00032785,7]
[364898015,1749286260903,-150.0,0.00032785,7]
[364898016,1749286260913,-150.0,0.00032793,7]
[364898017,1749286260923,-150.0,0.00032796,7]
[364898018,1749286260933,-218.84593086,0.00032798,7]
[364898019,1749286260943,-279.10775981,0.00032798,7]
[364898020,1749286260952,-150.0,0.00032803,2]
[364898021,1749286260962,-5006.94251078,0.00032808,2]
[364898022,1749286260971,-150.0,0.00032821,7]
[364898023,1749286260981,-218.84593086,0.00032831,7]
[364898024,1749286260992,-279.10775981,0.00032831,7]
[364898025,1749286261001,-150.0,0.00032841,7]
[364898026,1749286261011,-1000.0,0.00032857,2]
[364898027,1749286261020,-150.0,0.00032859,7]
[364898028,1749286261030,-150.0,0.00032861,7]
[364898029,1749286261039,-251.21448081,0.00032864,2]
[364898030,1749286261049,-218.84593086,0.00032865,7]
[364898031,1749286261058,-279.10775981,0.00032865,7]
[364898032,1749286261069,-150.0,0.00032868,7]
[364898033,1749286261079,-500.0,0.00032876,7]
[364898034,1749286261088,-3625.37,0.00032877,2]
[364898035,1749286261097,-333.59,0.00032877,2]
[364898036,1749286261107,-1000.0,0.00032879,7]
[364898037,1749286261116,-150.0,0.00032886,7]
[364898038,1749286261126,-218.84593086,0.00032898,7]
[364898039,1749286261135,-279.10775981,0.00032898,7]
[364898040,1749286261144,-150.0,0.00032915,7]
[364898041,1749286261153,-150.0,0.00032923,7]
[364898042,1749286261163,-150.0,0.00032929,7]
[364898043,1749286261172,-150.0,0.00032929,2]
[364898044,1749286261182,-150.0,0.00032931,7]
[364898045,1749286261191,-218.84593086,0.00032932,7]
[364898046,1749286261201,-279.10775981,0.00032932,7]
[364898047,1749286261210,-150.0,0.00032945,7]
[364898048,1749286261220,-150.0,0.00032945,7]
[364898049,1749286261229,-150.0,0.00032963,7]
[364898050,1749286261238,-218.84593086,0.00032965,7]
[364898051,1749286261247,-279.10775981,0.00032965,7]
[364898052,1749286261257,-150.0,0.00032976,7]
[364898053,1749286261271,-150.0,0.00032997,7]
[364898054,1749286261281,-218.84593086,0.00032999,7]
[364898055,1749286261291,-279.10775981,0.00032999,7]
[364898056,1749286261300,-160.0,0.00033,30]
[364898057,1749286261311,-1800.0,0.00033,34]
[364898058,1749286261320,-279.0,0.00033,14]
[364898059,1749286261330,-112346.4671236,0.00033,2]
[364898060,1749286261339,-1361.65,0.00033,31]
[364898061,1749286261349,-1361.65,0.00033,31]
[364898062,1749286261359,-1361.65,0.00033,31]
[364898063,1749286261368,-1361.65,0.00033,31]
[364898064,1749286261377,-1361.65,0.00033,31]
[364898065,1749286261386,-1361.65,0.00033,31]
[364898066,1749286261396,-1361.65,0.00033,31]
[364898067,1749286261406,-1361.65,0.00033,31]
[364898068,1749286261415,-1361.65,0.00033,31]
[364898069,1749286261425,-1361.65,0.00033,31]
[364898070,1749286261435,-1361.65,0.00033,31]
[364898071,1749286261444,-1361.65,0.00033,31]
[364898072,1749286261453,-1361.65,0.00033,31]
[364898073,1749286261463,-1361.65,0.00033,31]
[364898074,1749286261472,-1361.65,0.00033,31]
[364898075,1749286261482,-1361.65,0.00033,31]
[364898076,1749286261491,-1361.65,0.00033,31]
[364898077,1749286261501,-1361.65,0.00033,31]
[364898078,1749286261510,-1361.65,0.00033,31]
[364898079,1749286261519,-1361.65,0.00033,31]
[364898080,1749286261529,-1361.65,0.00033,31]
[364898081,1749286261538,-1361.65,0.00033,31]
[364898082,1749286261547,-1361.65,0.00033,31]
[364898083,1749286261556,-1361.65,0.00033,31]
[364898084,1749286261566,-222.0,0.00033,14]
[364898085,1749286261575,-181705.03,0.00033,14]
[364898086,1749286261584,-160.0,0.00033,30]
[364898087,1749286261593,-155.0,0.00033,14]
[364898088,1749286261603,-151.0,0.00033,7]
[364898089,1749286261612,-151.0,0.00033,7]
[364898090,1749286261621,-426.267147,0.00033,7]
[364898091,1749286261630,-426.267147,0.00033,7]
[364898092,1749286261639,-151.0,0.00033,7]
[364898093,1749286261649,-151.0,0.00033,7]
[364898094,1749286261659,-214.0,0.00033,2]
[364898095,1749286261668,-622.36247,0.00033,7]
[364898096,1749286261677,-150.0,0.0003301,7]
[364898097,1749286261686,-1000.0,0.00033016,7]
[364898098,1749286261695,-150.0,0.00033021,7]
[364898099,1749286261704,-1000.0,0.00033029,2]
[364898100,1749286261713,-150.0,0.0003303,7]
[364898101,1749286261723,-218.84593086,0.00033032,7]
[364898102,1749286261732,-279.10775981,0.00033032,7]
[364898103,1749286261741,-150.0,0.00033035,2]
[364898104,1749286261750,-150.0,0.00033058,7]
[364898105,1749286261759,-150.0,0.00033062,7]
[364898106,1749286261768,-768.45,0.00033064,2]
[364898107,1749286261778,-150.0,0.00033064,7]
[364898108,1749286261789,-150.0,0.00033065,7]
[364898109,1749286261799,-218.84593086,0.00033066,7]
[364898110,1749286261810,-279.10775981,0.00033066,7]
[364898111,1749286261822,-4655.34628196,0.00033072,28]
[364898112,1749286261832,-150.0,0.00033078,2]
[364898113,1749286261841,-158.98309357,0.0003309,5]
[364898114,1749286261852,-150.0,0.00033099,2]
[364898115,1749286261863,-218.84593086,0.00033099,7]
[364898116,1749286261872,-279.10775981,0.00033099,7]
[364898117,1749286261883,-159.0,0.000331,28]
[364898118,1749286261892,-387.0,0.000331,2]
[364898119,1749286261901,-150.0,0.00033105,7]
[364898120,1749286261911,-181.08010149,0.00033107,2]
[364898121,1749286261921,-248.71531821,0.00033107,2]
[364898122,1749286261931,-150.0,0.0003311,7]
[364898123,1749286261940,-150.0,0.00033115,7]
[364898124,1749286261950,-2110.0,0.00033116,2]
[364898125,1749286261960,-150.0,0.00033132,7]
[364898126,1749286261970,-218.84593086,0.00033133,7]
[364898127,1749286261979,-279.10775981,0.00033133,7]
[364898128,1749286261988,-150.0,0.00033133,2]
[364898129,1749286261998,-279.0,0.00033151,30]
[364898130,1749286262007,-150.0,0.00033153,7]
[364898131,1749286262017,-1000.0,0.00033153,7]
[364898132,1749286262027,-150.0,0.00033155,7]
[364898133,1749286262036,-150.0,0.00033164,2]
[364898134,1749286262046,-2078.57722146,0.00033165,2]
[364898135,1749286262056,-151.0,0.00033165,2]
[364898136,1749286262067,-287.9,0.00033165,2]
[364898137,1749286262076,-150.0,0.00033165,2]
[364898138,1749286262085,-218.84593086,0.00033166,7]
[364898139,1749286262094,-279.10775981,0.00033166,7]
[364898140,1749286262104,-500.0,0.0003317,2]
[364898141,1749286262114,-700.0,0.0003317,2]
[364898142,1749286262125,-758.99266673,0.00033199,2]
[364898143,1749286262134,-42366.76114381,0.000332,7]
[364898144,1749286262145,-17407.82,0.000332,14]
[364898145,1749286262155,-217.0,0.000332,30]
[364898146,1749286262165,-209.0,0.000332,2]
[364898147,1749286262175,-211.0,0.000332,2]
[364898148,1749286262184,-218.84593086,0.000332,7]
[364898149,1749286262194,-151.85130498,0.000332,7]
[364898150,1749286262203,-279.10775981,0.000332,7]
[364898151,1749286262214,-212.0,0.000332,30]
[364898152,1749286262223,-207.0,0.000332,2]
[364898153,1749286262232,-249.83161344,0.000332,7]
[364898154,1749286262243,-152.23285974,0.000332,7]
[364898155,1749286262253,-211.0,0.000332,2]
[364898156,1749286262264,-181.17106969,0.000332,7]
[364898157,1749286262276,-1000.0,0.000332,7]
[364898158,1749286262286,-170.14648559,0.000332,7]
[364898159,1749286262296,-174.76974366,0.000332,7]
[364898160,1749286262307,-154.8728504,0.000332,7]
[364898161,1749286262317,-165.73181334,0.000332,7]
[364898162,1749286262326,-152.75181426,0.000332,7]
[364898163,1749286262336,-212.0,0.000332,30]
[364898164,1749286262347,-196.79829365,0.000332,7]
[364898165,1749286262358,-206.0,0.000332,2]
[364898166,1749286262367,-207.0,0.000332,2]
[364898167,1749286262377,-1538.5606,0.000332,2]
[364898168,1749286262387,-1538.5606,0.000332,2]
[364898169,1749286262399,-2022.7066,0.000332,2]
[364898170,1749286262410,-2022.7066,0.000332,2]
[364898171,1749286262419,-2823.0218,0.000332,2]
[364898172,1749286262429,-2823.0218,0.000332,2]
[364898173,1749286262438,-154.3328354,0.00033203,2]
[364898174,1749286262449,-2323.8537577,0.00033203,2]
[364898175,1749286262459,-518.50272961,0.00033203,2]
[364898176,1749286262469,-159.0,0.00033226,30]
[364898177,1749286262478,-177.0,0.00033226,30]
[364898178,1749286262488,-150.0,0.0003327,2]
[364898179,1749286262497,-500.0,0.0003329,2]
[364898180,1749286262508,-500.0,0.0003329,2]
[364898181,1749286262519,-500.0,0.0003329,2]
[364898182,1749286262529,-500.0,0.0003329,2]
[364898183,1749286262541,-500.0,0.0003329,2]
[364898184,1749286262551,-500.0,0.0003329,2]
[364898185,1749286262562,-994.0,0.0003329,2]
[364898186,1749286262573,-1000.0,0.0003329,7]
[364898187,1749286262583,-1000.0,0.0003329,7]
[364898188,1749286262594,-1000.0,0.0003329,7]
[364898189,1749286262604,-150.0,0.00033309,2]
[364898190,1749286262614,-500.0,0.0003332,2]
[364898191,1749286262624,-500.0,0.0003332,2]
[364898192,1749286262634,-500.0,0.0003332,2]
[364898193,1749286262644,-500.0,0.0003332,2]
[364898194,1749286262654,-500.0,0.0003332,2]
[364898195,1749286262663,-500.0,0.0003332,2]
[364898196,1749286262672,-500.0,0.0003332,2]
[364898197,1749286262683,-500.0,0.0003332,2]
[364898198,1749286262692,-500.0,0.0003332,2]
[364898199,1749286262702,-500.0,0.0003332,2]
[364898200,1749286262712,-500.0,0.0003332,2]
[364898201,1749286262723,-500.0,0.0003332,2]
[364898202,1749286262732,-500.0,0.0003332,2]
[364898203,1749286262746,-500.0,0.0003332,2]
[364898204,1749286262756,-500.0,0.0003332,2]
[364898205,1749286262768,-500.0,0.0003332,2]
[364898206,1749286262777,-500.0,0.0003332,2]
[364898207,1749286262787,-500.0,0.0003332,2]
[364898208,1749286262796,-500.0,0.0003332,2]
[364898209,1749286262806,-500.0,0.0003332,2]
[364898210,1749286262816,-500.0,0.0003332,2]
[364898211,1749286262826,-500.0,0.0003332,2]
[364898212,1749286262837,-500.0,0.0003332,2]
[364898213,1749286262848,-500.0,0.0003332,2]
[364898214,1749286262857,-500.0,0.0003332,2]
[364898215,1749286262868,-500.0,0.0003332,2]
[364898216,1749286262877,-500.0,0.0003332,2]
[364898217,1749286262887,-500.0,0.0003332,2]
[364898218,1749286262896,-500.0,0.0003332,2]
[364898219,1749286262906,-500.0,0.0003332,2]
[364898220,1749286262916,-500.0,0.0003332,2]
[364898221,1749286262925,-500.0,0.0003332,2]
[364898222,1749286262935,-500.0,0.0003332,2]
[364898223,1749286262945,-500.0,0.0003332,2]
[364898224,1749286262955,-500.0,0.0003332,2]
[364898225,1749286262964,-500.0,0.0003332,2]
[364898226,1749286262974,-500.0,0.0003332,2]
[364898227,1749286262985,-500.0,0.0003332,2]
[364898228,1749286262995,-500.0,0.0003332,2]
[364898229,1749286263005,-500.0,0.0003332,2]
[364898230,1749286263015,-500.0,0.0003332,2]
[364898231,1749286263026,-500.0,0.0003332,2]
[364898232,1749286263036,-500.0,0.0003332,2]
[364898233,1749286263045,-500.0,0.0003332,2]
[364898234,1749286263056,-500.0,0.0003332,2]
[364898235,1749286263066,-500.0,0.0003332,2]
[364898236,1749286263077,-500.0,0.0003332,2]
[364898237,1749286263087,-500.0,0.0003332,2]
[364898238,1749286263098,-500.0,0.0003332,2]
[364898239,1749286263107,-500.0,0.0003332,2]
[364898240,1749286263118,-500.0,0.0003332,2]
[364898241,1749286263128,-500.0,0.0003332,2]
[364898242,1749286263138,-500.0,0.0003332,2]
[364898243,1749286263148,-500.0,0.0003332,2]
[364898244,1749286263159,-500.0,0.0003332,2]
[364898245,1749286263169,-500.0,0.0003332,2]
[364898246,1749286263181,-500.0,0.0003332,2]
[364898247,1749286263192,-500.0,0.0003332,2]
[364898248,1749286263202,-500.0,0.0003332,2]
[364898249,1749286263212,-500.0,0.0003332,2]
[364898250,1749286263223,-500.0,0.0003332,2]
[364898251,1749286263233,-500.0,0.0003332,2]
[364898252,1749286263243,-500.0,0.0003332,2]
[364898253,1749286263253,-500.0,0.0003332,2]
[364898254,1749286263264,-500.0,0.0003332,2]
[364898255,1749286263277,-500.0,0.0003332,2]
[364898256,1749286263287,-500.0,0.0003332,2]
[364898257,1749286263297,-500.0,0.0003332,2]
[364898258,1749286263308,-500.0,0.0003332,2]
[364898259,1749286263319,-500.0,0.0003332,2]
[364898260,1749286263329,-500.0,0.0003332,2]
[364898261,1749286263339,-500.0,0.0003332,2]
[364898262,1749286263352,-500.0,0.0003332,2]
[364898263,1749286263362,-500.0,0.0003332,2]
[364898264,1749286263372,-500.0,0.0003332,2]
[364898265,1749286263382,-500.0,0.0003332,2]
[364898266,1749286263392,-500.0,0.0003332,2]
[364898267,1749286263402,-500.0,0.0003332,2]
[364898268,1749286263413,-500.0,0.0003332,2]
[364898269,1749286263423,-500.0,0.0003332,2]
[364898270,1749286263434,-500.0,0.0003332,2]
[364898271,1749286263444,-500.0,0.0003332,2]
[364898272,1749286263455,-500.0,0.0003332,2]
[364898273,1749286263466,-500.0,0.0003332,2]
[364898274,1749286263475,-500.0,0.0003332,2]
[364898275,1749286263485,-500.0,0.0003332,2]
[364898276,1749286263495,-500.0,0.0003332,2]
[364898277,1749286263505,-500.0,0.0003332,2]
[364898278,1749286263515,-500.0,0.0003332,2]
[364898279,1749286263525,-500.0,0.0003332,2]
[364898280,1749286263536,-500.0,0.0003332,2]
[364898281,1749286263545,-500.0,0.0003332,2]
[364898282,1749286263555,-500.0,0.0003332,2]
[364898283,1749286263566,-500.0,0.0003332,2]
[364898284,1749286263576,-500.0,0.0003332,2]
[364898285,1749286263586,-500.0,0.0003332,2]
[364898286,1749286263596,-500.0,0.0003332,2]
[364898287,1749286263606,-500.0,0.0003332,2]
[364898288,1749286263617,-500.0,0.0003332,2]
[364898289,1749286263627,-500.0,0.0003332,2]
[364898290,1749286263638,-500.0,0.0003332,2]
[364898291,1749286263647,-500.0,0.0003332,2]
[364898292,1749286263658,-500.0,0.0003332,2]
[364898293,1749286263668,-500.0,0.0003332,2]
[364898294,1749286263678,-500.0,0.0003332,2]
[364898295,1749286263687,-500.0,0.0003332,2]
[364898296,1749286263697,-500.0,0.0003332,2]
[364898297,1749286263707,-500.0,0.0003332,2]
[364898298,1749286263717,-500.0,0.0003332,2]
[364898299,1749286263727,-500.0,0.0003332,2]
[364898300,1749286263738,-500.0,0.0003332,2]
[364898301,1749286263748,-500.0,0.0003332,2]
[364898302,1749286263758,-500.0,0.0003332,2]
[364898303,1749286263768,-940.0,0.0003332,2]
[364898304,1749286263778,-500.0,0.0003332,2]
[364898305,1749286263788,-500.0,0.0003332,2]
[364898306,1749286263799,-500.0,0.0003332,2]
[364898307,1749286263809,-500.0,0.0003332,2]
[364898308,1749286263820,-500.0,0.0003332,2]
[364898309,1749286263830,-500.0,0.0003332,2]
[364898310,1749286263840,-500.0,0.0003332,2]
[364898311,1749286263850,-500.0,0.0003332,2]
[364898312,1749286263860,-500.0,0.0003332,2]
[364898313,1749286263870,-985.0,0.0003332,2]
[364898314,1749286263880,-500.0,0.0003332,2]